fUSD/lending_fUSD_20240327
["ID","MTS","AMOUNT","RATE_DAILY","PERIOD"]
[320821598,1711579833393,-210.72984839,0.00049496,7]
[320821600,1711579833403,-418.4,0.00049506,2]
[320821602,1711579833412,-150.0,0.000496,10]
[320821604,1711579833422,-151.032807,0.00049698,86]
[320821606,1711579833431,-210.72984839,0.00049777,7]
[320821608,1711579833441,-210.72984839,0.00049777,7]
[320821610,1711579833450,-210.72984839,0.00049777,7]
[320821612,1711579833460,-210.72984839,0.00049777,7]
[320821614,1711579833470,-6176.47810292,0.00049787,2]
[320821616,1711579833479,-151.032807,0.00049798,86]
[320821618,1711579833489,-151.032807,0.00049898,87]
[320821620,1711579833498,-210.72984839,0.0004999,30]
[320821622,1711579833507,-210.72984839,0.0004999,30]
[320821624,1711579833517,-210.72984839,0.0004999,30]
[320821626,1711579833527,-210.72984839,0.0004999,30]
[320821628,1711579833536,-151.032807,0.00049998,88]
[320821629,1711579833545,-5000.0,0.0005,30]
[320821631,1711579833555,-1055.42,0.0005,30]
[320821633,1711579833565,-150.0,0.000501,10]
[320821635,1711579833574,-210.72984839,0.00050127,30]
[320821637,1711579833583,-355.19,0.00050137,120]
[320821639,1711579833593,-185.21,0.00050176,2]
[320821641,1711579833602,-259.86,0.0005019,2]
[320821642,1711579833612,-151.032807,0.00050198,91]
[320821646,1711579833803,-210.72984839,0.00050288,30]
[320821647,1711579833826,-210.72984839,0.00050288,30]
[320821648,1711579833835,-210.72984839,0.00050288,30]
[320821649,1711579833845,-12048.5555,0.00050298,2]
[320821650,1711579833854,-151.032807,0.00050398,91]
[320821651,1711579833865,-151.032807,0.00050498,92]
[320821652,1711579833874,-200.0,0.00050591,30]
[320821653,1711579833883,-800.0,0.00050591,30]
[320821654,1711579833892,-500.0,0.00050591,30]
[320821655,1711579833902,-150.0,0.000506,10]
[320821656,1711579833911,-150.35492262,0.00050689,14]
[320821657,1711579833921,-329.74,0.00050779,2]
[320821658,1711579833930,-235.95798628,0.00050788,2]
[320821659,1711579833940,-1376.0,0.00050789,120]
[320821660,1711579833949,-458.0,0.00050789,120]
[320821661,1711579833958,-961.0,0.00050789,120]
[320821662,1711579833967,-2409.0,0.00050789,120]
[320821663,1711579833977,-1249.0,0.00050789,120]
[320821664,1711579833986,-1267.0,0.00050789,120]
[320821665,1711579833995,-278.0,0.00050789,120]
[320821666,1711579834005,-802.0,0.00050789,120]
[320821667,1711579834016,-433.0,0.00050789,120]
[320821668,1711579834024,-604.0,0.00050789,120]
[320821669,1711579834033,-1458.0,0.00050789,120]
[320821670,1711579834042,-396.0,0.00050789,120]
[320821671,1711579834052,-1133.0,0.00050789,120]
[320821672,1711579834061,-2959.0,0.00050789,120]
[320821673,1711579834070,-150.0,0.00050789,120]
[320821674,1711579834080,-21.27062264,0.00050789,120]
[320821675,1711579834425,-128.72937736,0.00050789,120]
[320821676,1711579834435,-218.50082264,0.00050789,120]
[320821679,1711579837779,-150.209,0.00047789,2]
[320821680,1711579837789,-210.72984839,0.00050288,30]
[320821681,1711579837798,-210.72984839,0.00050288,30]
[320821682,1711579837808,-210.72984839,0.00050288,30]
[320821683,1711579837817,-210.72984839,0.00050288,30]
[320821684,1711579837826,-210.72984839,0.00050288,30]
[320821685,1711579837835,-210.72984839,0.0005058,30]
[320821686,1711579837844,-210.72984839,0.00050779,30]
[320821687,1711579837854,-210.72984839,0.00050779,30]
[320821688,1711579837862,-175.8723328,0.00050779,30]
[320821689,1711579837874,-34.85751559,0.00050779,30]
[320821690,1711579837883,-210.72984839,0.00050779,30]
[320821691,1711579837892,-210.72984839,0.00050779,30]
[320821692,1711579837901,-210.72984839,0.00050779,30]
[320821693,1711579837910,-210.72984839,0.00050779,30]
[320821694,1711579837920,-210.72984839,0.00050779,30]
[320821695,1711579837929,-210.72984839,0.00050779,30]
[320821696,1711579837938,-210.72984839,0.00050779,30]
[320821697,1711579837948,-210.72984839,0.00050779,30]
[320821698,1711579837957,-210.72984839,0.00050779,30]
[320821699,1711579837966,-210.72984839,0.00050779,30]
[320821700,1711579837976,-210.72984839,0.00050779,30]
[320821701,1711579837985,-210.72984839,0.00050779,30]
[320821702,1711579837995,-210.72984839,0.00050779,30]
[320821703,1711579838004,-210.72984839,0.00050779,30]
[320821704,1711579838013,-210.72984839,0.00050779,30]
[320821705,1711579838024,-210.72984839,0.00050779,30]
[320821706,1711579838032,-210.72984839,0.00050779,30]
[320821707,1711579838041,-210.72984839,0.00050779,30]
[320821708,1711579838051,-210.72984839,0.00050779,30]
[320821710,1711579838060,-210.72984839,0.00050779,30]
[320821712,1711579838069,-210.72984839,0.00050779,30]
[320821714,1711579838078,-210.72984839,0.00050779,30]
[320821716,1711579838088,-210.72984839,0.00050779,30]
[320821718,1711579838099,-2204.49917736,0.00050789,120]
[320821720,1711579838109,-1626.0,0.00050789,120]
[320821721,1711579838118,-213.0,0.00050789,2]
[320821723,1711579838128,-1176.0,0.00050789,120]
[320821725,1711579838137,-150.0,0.00050789,120]
[320821727,1711579838146,-1258.12014722,0.00050789,120]
[320821730,1711579838163,-275.74,0.00050789,120]
[320821734,1711579838196,-210.72984839,0.00050779,30]
[320821736,1711579838205,-508.72015161,0.00050789,120]
[320821772,1711579839808,-241.143,0.00047789,2]
[320821773,1711579839817,-210.72984839,0.00050779,30]
[320821774,1711579839828,-210.72984839,0.00050779,30]
[320821775,1711579839839,-210.72984839,0.00050779,30]
[320821776,1711579839850,-210.72984839,0.00050779,30]
[320821777,1711579839860,-3637.41970117,0.00050789,120]
[320821778,1711579839869,-31308.11209032,0.00050789,120]
[320821780,1711579839975,-533.36587345,0.00050789,120]
[320821781,1711579839994,-464.00500032,0.00050789,120]
[320821782,1711579840006,-1735.10123168,0.00050789,120]
[320821806,1711579842857,-6361.35781644,0.00050789,120]
[320821807,1711579843027,-320.81503526,0.00050789,120]
[320821837,1711580042102,17400.0,0.00018,2]
[320821838,1711580042134,477266.17596973,0.00018,2]
[320821841,1711580072599,22733.82403027,0.00015,2]
[320821842,1711580072626,19400.0,0.00015,2]
[320821843,1711580072653,4958.5936764,0.00015,2]
[320821844,1711580072675,5437.77723616,0.00015,2]
[320821845,1711580072700,67653.62376723,0.00015,2]
[320821847,1711580096665,359.48685988,0.00015,2]
[320821863,1711580112317,359.48685988,0.00015,2]
[320821868,1711580130315,359.48685988,0.00015,2]
[320821869,1711580148648,359.48685988,0.00015,2]
[320821870,1711580172330,301.12613202,0.00015,2]
[320821871,1711580265972,44600.9731029,0.00015,2]
[320821872,1711580535219,-346.73112929,0.00021,2]
[320821873,1711580535241,-2451.72992449,0.00021,2]
[320821874,1711580859325,-1000.0,0.00031,30]
[320821875,1711580873303,-1000.0,0.00030999,4]
[320821876,1711580883547,-1400.0,0.00030999,4]
[320821894,1711581031948,-170.55,0.00028801,2]
[320821895,1711581031957,-1560.78721284,0.00030999,4]
[320821896,1711581031966,-1000.0,0.00033,120]
[320821897,1711581031976,-1000.0,0.00035,30]
[320821898,1711581031985,-1248.70424314,0.00038507,4]
[320821899,1711581031996,-192.22165366,0.0004053,2]
[320821900,1711581032005,-2000.0,0.00040535,4]
[320821901,1711581032016,-816.73689036,0.00040536,2]
[320821972,1711581038322,-19666.01550526,0.00036481,10]
[320821973,1711581038334,-259.00982467,0.00040534,2]
[320821974,1711581038344,-23381.18956657,0.00040536,2]
[320821975,1711581038354,-24484.8989539,0.00040536,2]
[320821976,1711581038364,-799.999999,0.00040536,2]
[320821977,1711581038373,-248.025,0.00044411,2]
[320821978,1711581038382,-560.86115059,0.00044411,2]
[320821979,1711581038395,-2781.9276,0.00044411,2]
[320821980,1711581038428,-1911.08,0.00044411,2]
[320821981,1711581038444,-426.13124941,0.00044411,2]
[320821982,1711581038455,-4771.0,0.00044411,2]
[320821983,1711581038466,-7473.00369344,0.00044411,2]
[320822044,1711581043280,-562.07630656,0.00044411,2]
[320822045,1711581043289,-2449.0,0.00044411,2]
[320822046,1711581043298,-252.74,0.00047411,2]
[320822047,1711581043311,-3255.194,0.00047411,2]
[320822048,1711581043320,-2441.0,0.00047411,2]
[320822049,1711581043329,-355.64,0.0004767,2]
[320822050,1711581043340,-453.283,0.00047789,2]
[320822051,1711581043350,-960.0,0.00047789,2]
[320822052,1711581043359,-801.0,0.00047789,2]
[320822053,1711581043368,-604.0,0.00047789,2]
[320822054,1711581043378,-278.0,0.00047789,2]
[320822055,1711581043387,-1267.0,0.00047789,2]
[320822056,1711581043396,-432.0,0.00047789,2]
[320822057,1711581043406,-396.0,0.00047789,2]
[320822058,1711581043415,-1813.202,0.00047789,2]
[320822059,1711581043424,-1620.0,0.00047789,2]
[320822060,1711581043433,-2415.0,0.00047789,2]
[320822061,1711581043442,-213.0,0.00047789,2]
[320822062,1711581043452,-150.0,0.000486,9]
[320822063,1711581043464,-1016.0,0.000487,117]
[320822064,1711581043474,-265.38205921,0.00048999,30]
[320822065,1711581043483,-150.0,0.000491,9]
[320822066,1711581043493,-222.032808,0.00049298,75]
[320822067,1711581043503,-151.032807,0.00049398,75]
[320822068,1711581043512,-157.032808,0.00049398,75]
[320822069,1711581043521,-222.032808,0.00049498,76]
[320822070,1711581043530,-250.0,0.00049559,112]
[320822071,1711581043542,-250.0,0.00049564,120]
[320822072,1711581043552,-2033.3,0.0004958,120]
[320822073,1711581043561,-680.0,0.00049583,120]
[320822074,1711581043570,-151.032807,0.00049598,77]
[320822075,1711581043579,-157.032808,0.00049598,76]
[320822076,1711581043589,-150.0,0.000496,10]
[320822077,1711581043598,-250.0,0.00049601,120]
[320822078,1711581043608,-500.0,0.00049606,2]
[320822079,1711581043618,-256.86,0.00049613,2]
[320822080,1711581043627,-152.34,0.00049629,120]
[320822081,1711581043637,-161.60434799,0.00049642,120]
[320822082,1711581043646,-320.0,0.00049643,120]
[320822083,1711581043656,-3019.99,0.00049663,2]
[320822084,1711581043665,-183.0,0.00049674,2]
[320822085,1711581043674,-184.0,0.00049678,120]
[320822086,1711581043684,-222.032808,0.00049698,78]
[320822087,1711581043693,-409.21,0.00049785,120]
[320822088,1711581043703,-151.032807,0.00049798,79]
[320822089,1711581043712,-222.032808,0.00049798,77]
[320822090,1711581043721,-151.032807,0.00049898,80]
[320822091,1711581043731,-1485.99049044,0.000499,2]
[320822092,1711581043740,-355.64,0.00049934,2]
[320822093,1711581043750,-157.032808,0.00049998,78]
[320822094,1711581043759,-222.032808,0.00049998,81]
[320822095,1711581043769,-555.34721949,0.0005,2]
[320822096,1711581043778,-11157.34,0.0005,120]
[320822097,1711581043788,-360.0,0.0005,120]
[320822098,1711581043798,-5000.0,0.0005,30]
[320822099,1711581043809,-1902.0,0.0005,120]
[320822100,1711581043818,-159.06,0.00050023,2]
[320822101,1711581043828,-151.032807,0.00050098,82]
[320822102,1711581043837,-150.0,0.000501,10]
[320822103,1711581043847,-222.032808,0.00050198,83]
[320822104,1711581043857,-151.032807,0.00050298,84]
[320822105,1711581043866,-150.0,0.00050313,7]
[320822106,1711581043876,-3293.88591565,0.00050398,2]
[320822107,1711581043885,-222.032808,0.00050398,85]
[320822108,1711581043895,-430.71326307,0.000504,2]
[320822109,1711581043904,-151.032807,0.00050498,86]
[320822110,1711581043914,-200.0,0.00050591,30]
[320822111,1711581043923,-800.0,0.00050591,30]
[320822112,1711581043932,-200.0,0.00050591,30]
[320822113,1711581043942,-500.0,0.00050591,30]
[320822114,1711581043951,-222.032808,0.00050598,87]
[320822115,1711581043961,-150.0,0.000506,10]
[320822116,1711581043971,-150.0,0.00050607,7]
[320822117,1711581043980,-150.0,0.00050617,7]
[320822118,1711581043989,-150.0,0.00050636,7]
[320822119,1711581043999,-151.032807,0.00050698,88]
[320822120,1711581044008,-150.0,0.0005074,7]
[320822121,1711581044019,-263.45844408,0.00050787,2]
[320822122,1711581044027,-1236.41009782,0.00050789,120]
[320822123,1711581044174,-30.58990218,0.00050789,120]
[320822124,1711581044183,-213.0,0.00050789,2]
[320822125,1711581044193,-222.032808,0.00050798,93]
[320822126,1711581044203,-150.0,0.00050848,7]
[320822127,1711581044212,-150.29886676,0.00051017,60]
[320822128,1711581044221,-150.0,0.00051042,7]
[320822129,1711581044231,-152.63004077,0.00051074,60]
[320822130,1711581044241,-150.0,0.000511,10]
[320822131,1711581044250,-166.55099269,0.00051177,60]
[320822132,1711581044260,-151.032807,0.00051198,94]
[320822133,1711581044269,-152.51376111,0.00051199,60]
[320822134,1711581044278,-150.29886676,0.00051226,60]
[320822135,1711581044411,-150.0,0.00051262,7]
[320822136,1711581044421,-181.032808,0.00051398,91]
[320822137,1711581044430,-3809.76585458,0.00051399,4]
[320822138,1711581044439,-563.50205483,0.00051399,2]
[320822139,1711581044448,-150.29886676,0.00051414,60]
[320822140,1711581044461,-796.02,0.00051438,30]
[320822141,1711581044471,-12246.38837673,0.00051448,2]
[320822142,1711581044480,-150.30995796,0.0005148,60]
[320822143,1711581044490,-151.032807,0.00051498,95]
[320822144,1711581044498,-156.10673236,0.00051524,60]
[320822145,1711581044509,-150.0,0.00051548,7]
[320822146,1711581044518,-150.0,0.000516,10]
[320822147,1711581044528,-16882.0,0.000516,120]
[320822148,1711581044539,-150.30995796,0.00051617,60]
[320822149,1711581044548,-155.61103007,0.00051636,60]
[320822150,1711581044558,-150.30995796,0.00051647,60]
[320822151,1711581044568,-150.0,0.000517,10]
[320822152,1711581044578,-156.10673236,0.00051701,60]
[320822153,1711581044587,-150.30995796,0.00051711,60]
[320822154,1711581044597,-151.032807,0.00051798,96]
[320822155,1711581044606,-337.72329136,0.00051844,23]
[320822156,1711581044616,-150.0,0.00051893,7]
[320822157,1711581044626,-158.12639606,0.00051913,60]
[320822158,1711581044636,-150.30995796,0.00051927,60]
[320822159,1711581044645,-296.77,0.00051932,2]
[320822160,1711581044655,-6882.5162,0.00051942,2]
[320822161,1711581044665,-9935.3721,0.00051942,2]
[320822162,1711581044674,-245000.0,0.00051942,2]
[320822163,1711581044683,-163.032808,0.00051961,96]
[320822164,1711581044693,-150.30995796,0.00051964,60]
[320822165,1711581044703,-151.032807,0.00051971,97]
[320822166,1711581044713,-151.032807,0.00051981,98]
[320822167,1711581044722,-296.77,0.0005199,2]
[320822168,1711581044731,-151.032807,0.00051991,99]
[320822169,1711581044742,-736.28839739,0.00052,4]
[320822170,1711581044752,-20852.92040958,0.00052,120]
[320822171,1711581044769,-3179.86153378,0.00052,120]
[320822172,1711581044779,-364.59098547,0.00052,120]
[320822173,1711581044788,-151.032807,0.00052001,93]
[320822174,1711581044797,-151.032807,0.00052011,87]
[320822175,1711581044808,-151.032807,0.00052021,88]
[320822176,1711581044817,-158.12639606,0.00052026,60]
[320822177,1711581044826,-151.032807,0.00052031,89]
[320822178,1711581044835,-466.0,0.00052032,7]
[320822179,1711581044845,-601.84121051,0.00052032,2]
[320822180,1711581044854,-296.77,0.00052032,2]
[320822181,1711581044864,-151.032807,0.00052041,90]
[320822182,1711581044873,-500.0,0.00052041,120]
[320822183,1711581044883,-259627.22394634,0.00052042,120]
[320822184,1711581044893,-2224.37,0.00052054,2]
[320822185,1711581044902,-1000.0,0.00052055,30]
[320822186,1711581044912,-150.0,0.0005207,7]
[320822187,1711581044921,-154.13434477,0.00052099,60]
[320822188,1711581044930,-150.0,0.000521,11]
[320822189,1711581044939,-150.0,0.00052139,7]
[320822190,1711581044948,-151.032807,0.00052198,97]
[320822191,1711581044957,-355.64,0.00052198,2]
[320822192,1711581044966,-150.0,0.000522,11]
[320822193,1711581044975,-150.0,0.00052246,7]
[320822194,1711581044984,-151.032807,0.00052398,91]
[320822195,1711581044993,-150.0,0.00052411,7]
[320822196,1711581045002,-153.48778705,0.00052431,60]
[320822197,1711581045011,-154.13434477,0.0005248,60]
[320822198,1711581045020,-150.0,0.00052482,7]
[320822199,1711581045030,-151.032807,0.00052498,98]
[320822200,1711581045039,-164.48246795,0.00052541,60]
[320822201,1711581045049,-156.10673236,0.00052559,60]
[320822202,1711581045059,-153.06020275,0.00052578,60]
[320822203,1711581045067,-150.0,0.000526,11]
[320822204,1711581045077,-509.53890767,0.00052606,120]
[320822205,1711581045086,-158.12639606,0.0005266,60]
[320822206,1711581045095,-800.0,0.00052691,30]
[320822207,1711581045105,-150.0,0.000527,11]
[320822208,1711581045114,-153.48778705,0.00052767,60]
[320822209,1711581045124,-509.53890767,0.00052771,120]
[320822210,1711581045133,-150.30995796,0.0005278,60]
[320822211,1711581045142,-151.032807,0.00052798,99]
[320822212,1711581045151,-12246.38837668,0.0005281,2]
[320822213,1711581045160,-150.29886676,0.00052822,60]
[320822214,1711581045170,-150.0,0.00052824,7]
[320822215,1711581045179,-150.0,0.00052827,7]
[320822216,1711581045190,-150.0,0.0005283,7]
[320822217,1711581045199,-150.0,0.00052831,7]
[320822218,1711581045208,-150.0,0.00052834,7]
[320822219,1711581045217,-150.0,0.00052839,7]
[320822220,1711581045226,-150.0,0.00052841,7]
[320822221,1711581045235,-150.0,0.00052844,7]
[320822222,1711581045244,-150.0,0.0005285,7]
[320822223,1711581045253,-150.0,0.00052858,7]
[320822224,1711581045263,-150.0,0.00052863,7]
[320822225,1711581045272,-150.0,0.0005287,7]
[320822226,1711581045281,-150.0,0.00052871,7]
[320822227,1711581045291,-2224.37,0.00052876,120]
[320822228,1711581045302,-164.48246795,0.00052877,60]
[320822229,1711581045312,-150.0,0.00052879,7]
[320822230,1711581045321,-150.0,0.00052879,7]
[320822231,1711581045330,-150.0,0.00052879,7]
[320822232,1711581045342,-150.0,0.00052881,7]
[320822233,1711581045351,-150.0,0.00052881,7]
[320822234,1711581045360,-150.0,0.00052888,7]
[320822235,1711581045369,-150.0,0.00052888,7]
[320822236,1711581045378,-150.0,0.0005289,7]
[320822237,1711581045388,-150.0,0.0005289,7]
[320822238,1711581045396,-150.0,0.00052894,7]
[320822239,1711581045406,-150.0,0.00052897,7]
[320822240,1711581045415,-150.0,0.00052897,7]
[320822241,1711581045424,-150.0,0.00052899,7]
[320822242,1711581045433,-150.0,0.00052901,7]
[320822243,1711581045442,-150.0,0.00052905,7]
[320822244,1711581045452,-150.0,0.00052911,7]
[320822245,1711581045463,-150.0,0.00052911,7]
[320822246,1711581045472,-150.0,0.00052919,7]
[320822247,1711581045481,-150.0,0.00052923,7]
[320822248,1711581045491,-150.0,0.00052923,7]
[320822249,1711581045501,-150.0,0.00052924,7]
[320822250,1711581045511,-150.0,0.00052924,7]
[320822251,1711581045520,-150.0,0.00052926,7]
[320822252,1711581045529,-150.0,0.00052929,7]
[320822253,1711581045540,-150.0,0.0005293,7]
[320822254,1711581045549,-509.53890767,0.00052937,120]
[320822255,1711581045560,-150.0,0.00052937,7]
[320822256,1711581045569,-150.0,0.00052938,7]
[320822257,1711581045579,-150.0,0.00052939,7]
[320822258,1711581045588,-150.0,0.0005294,7]
[320822259,1711581045598,-150.0,0.00052948,7]
[320822260,1711581045607,-150.0,0.00052952,7]
[320822261,1711581045616,-150.30995796,0.00052952,60]
[320822262,1711581045626,-150.0,0.00052953,7]
[320822263,1711581045636,-150.0,0.00052959,7]
[320822264,1711581045645,-150.0,0.0005296,7]
[320822265,1711581045654,-150.0,0.00052966,7]
[320822266,1711581045664,-150.0,0.0005297,7]
[320822267,1711581045673,-150.0,0.00052975,7]
[320822268,1711581045682,-150.0,0.00052975,7]
[320822269,1711581045691,-150.0,0.00052977,7]
[320822270,1711581045701,-150.0,0.00052982,7]
[320822272,1711581045710,-200.0,0.00052987,2]
[320822274,1711581045719,-150.0,0.00052999,7]
[320822275,1711581045729,-600.00000001,0.00053,53]
[320822276,1711581045738,-2000.0,0.00053,30]
[320822277,1711581045747,-150.0,0.00053,7]
[320822278,1711581045757,-2763.4838476,0.00053,15]
[320822280,1711581045766,-150.59,0.00053,120]
[320822281,1711581045775,-150.59,0.00053,120]
[320822282,1711581045785,-150.59,0.00053,120]
[320822283,1711581045794,-150.59,0.00053,120]
[320822284,1711581045805,-150.59,0.00053,120]
[320822285,1711581045814,-150.59,0.00053,120]
[320822286,1711581045823,-150.59,0.00053,120]
[320822287,1711581045833,-150.0,0.00053005,7]
[320822288,1711581045842,-212.0,0.00053011,2]
[320822289,1711581045852,-150.0,0.0005302,7]
[320822290,1711581045862,-150.0,0.0005302,7]
[320822291,1711581045871,-150.0,0.00053021,7]
[320822292,1711581045880,-150.0,0.00053024,7]
[320822293,1711581045889,-469.78390437,0.00053026,2]
[320822294,1711581045899,-150.0,0.00053032,7]
[320822295,1711581045908,-150.0,0.00053032,7]
[320822296,1711581045919,-150.0,0.00053036,7]
[320822297,1711581045929,-150.0,0.00053038,7]
[320822298,1711581045938,-150.0,0.00053041,7]
[320822299,1711581045947,-150.0,0.00053047,7]
[320822300,1711581045956,-1909.2242312,0.00053048,30]
[320822301,1711581045966,-150.0,0.0005305,7]
[320822302,1711581045975,-150.0,0.00053051,7]
[320822303,1711581045985,-150.30995796,0.00053056,60]
[320822304,1711581045994,-150.0,0.00053058,7]
[320822305,1711581046004,-150.0,0.00053059,7]
[320822306,1711581046013,-150.0,0.00053059,7]
[320822307,1711581046023,-150.0,0.00053059,7]
[320822308,1711581046032,-150.0,0.00053065,7]
[320822309,1711581046041,-150.0,0.00053067,7]
[320822310,1711581046051,-150.0,0.0005307,7]
[320822311,1711581046060,-150.0,0.00053076,7]
[320822312,1711581046070,-150.0,0.00053076,7]
[320822313,1711581046079,-150.0,0.00053078,7]
[320822314,1711581046088,-150.0,0.00053078,7]
[320822315,1711581046097,-150.0,0.00053078,7]
[320822316,1711581046106,-152.63004077,0.0005308,60]
[320822317,1711581046116,-150.0,0.00053081,7]
[320822318,1711581046125,-150.0,0.00053087,7]
[320822319,1711581046134,-150.0,0.0005309,7]
[320822320,1711581046143,-150.0,0.00053094,7]
[320822321,1711581046153,-151.01057926,0.00053098,56]
[320822322,1711581046162,-479.0,0.000531,42]
[320822323,1711581046171,-150.0,0.000531,120]
[320822324,1711581046180,-472.0,0.000531,31]
[320822325,1711581046190,-150.0,0.000531,11]
[320822326,1711581046199,-509.53890767,0.00053102,120]
[320822327,1711581046208,-150.59,0.00053108,120]
[320822328,1711581046218,-150.59,0.00053108,120]
[320822329,1711581046228,-150.59,0.00053108,120]
[320822330,1711581046238,-296.77,0.00053108,2]
[320822331,1711581046364,-500.0,0.0005311,60]
[320822332,1711581046375,-158.12639606,0.0005311,60]
[320822333,1711581046385,-150.0,0.00053116,7]
[320822334,1711581046394,-150.59,0.00053116,120]
[320822335,1711581046404,-9255.3527255,0.00053118,2]
[320822336,1711581046413,-121476.9097772,0.00053118,2]
[320822337,1711581046423,-151.0,0.00053118,30]
[320822338,1711581046433,-4632.3277387,0.00053118,2]
[320822339,1711581046443,-151.0,0.00053118,60]
[320822340,1711581046452,-730.93433,0.00053118,120]
[320822341,1711581046464,-730.93433,0.00053118,120]
[320822342,1711581046473,-151.0,0.00053118,120]
[320822343,1711581046483,-202.7110454,0.00053118,4]
[320822344,1711581046493,-210.17849718,0.00053118,4]
[320822345,1711581046504,-527.00706221,0.00053118,2]
[320822346,1711581046514,-155.37011808,0.00053118,4]
[320822347,1711581046524,-349.6859579,0.00053118,2]
[320822348,1711581046533,-200.0,0.00053118,2]
[320822349,1711581046544,-679.84192256,0.00053118,4]
[320822350,1711581046554,-265.80396251,0.00053118,4]
[320822351,1711581046563,-373.46530536,0.00053118,4]
[320822352,1711581046572,-12051.70726714,0.00053119,120]
[320822353,1711581046581,-151.0,0.00053126,30]
[320822354,1711581046590,-238.760842,0.00053126,120]
[320822355,1711581046599,-238.760842,0.00053126,120]
[320822356,1711581046608,-151.0,0.00053126,120]
[320822357,1711581046617,-151.0,0.00053126,120]
[320822358,1711581046626,-151.0,0.00053126,120]
[320822359,1711581046636,-151.0,0.00053126,120]
[320822360,1711581046645,-151.0,0.00053126,120]
[320822361,1711581046654,-151.0,0.00053126,120]
[320822362,1711581046663,-151.0,0.00053126,120]
[320822363,1711581046672,-151.0,0.00053126,120]
[320822364,1711581046681,-151.0,0.00053126,120]
[320822365,1711581046690,-151.0,0.00053126,120]
[320822366,1711581046700,-151.0,0.00053126,120]
[320822367,1711581046709,-151.0,0.00053126,120]
[320822368,1711581046719,-152.63004077,0.00053154,60]
[320822369,1711581046729,-150.29886676,0.00053193,60]
[320822370,1711581046738,-157.032807,0.00053198,113]
[320822371,1711581046747,-437.79,0.000532,7]
[320822372,1711581046756,-150.0,0.000532,11]
[320822373,1711581046765,-150.30995796,0.00053244,60]
[320822374,1711581046775,-158.12639606,0.00053248,60]
[320822375,1711581046784,-509.53890767,0.00053268,120]
[320822376,1711581046793,-500.0,0.00053289,4]
[320822377,1711581046802,-500.0,0.00053289,4]
[320822378,1711581046812,-500.0,0.00053289,4]
[320822379,1711581046821,-500.0,0.00053289,4]
[320822380,1711581046830,-500.0,0.00053289,4]
[320822381,1711581046840,-500.0,0.00053289,4]
[320822382,1711581046849,-500.0,0.00053289,4]
[320822383,1711581046858,-500.0,0.00053289,4]
[320822384,1711581046867,-500.0,0.00053289,4]
[320822385,1711581046876,-500.0,0.00053289,4]
[320822386,1711581046885,-500.0,0.00053289,4]
[320822387,1711581046894,-500.0,0.00053289,4]
[320822388,1711581046903,-500.0,0.00053289,4]
[320822389,1711581046913,-500.0,0.00053289,4]
[320822390,1711581046922,-500.0,0.00053289,4]
[320822391,1711581046931,-500.0,0.00053289,4]
[320822392,1711581046940,-500.0,0.00053289,4]
[320822393,1711581046949,-500.0,0.00053289,4]
[320822394,1711581046958,-500.0,0.00053289,4]
[320822395,1711581046967,-500.0,0.00053289,4]
[320822396,1711581046976,-302.0,0.00053289,4]
[320822397,1711581046986,-158.12639606,0.00053299,60]
[320822398,1711581046995,-152.63004077,0.00053321,60]